bitfinex-derivatives/quotes_BNBF0:USTF0_20250316
["timestamp","ask_amount","ask_price","bid_price","bid_amount"]
[1742091414573,0.32599837,613.5,612.04,1.55177602]
[1742091415165,0.32599837,613.5,612.04,2.91477602]
[1742091417074,2.46357754,613.42,612.04,2.91477602]
[1742091417274,0.3260462,613.41,612.04,2.91477602]
[1742091419769,0.28411178,613.4,612.04,2.91477602]
[1742091419975,0.32605683,613.39,612.04,2.91477602]
[1742091420170,0.32605683,613.39,612.04,4.39777602]
[1742091421680,0.32605683,613.39,612.04,5.36677602]
[1742091425778,0.2841141,613.38,612.04,5.36677602]
[1742091425974,0.32606746,613.37,612.04,5.36677602]
[1742091427777,0.28411526,613.36,612.04,5.36677602]
[1742091427977,0.32607809,613.35,612.04,5.36677602]
[1742091435491,2.46357754,613.25,612.04,5.36677602]
[1742091437995,2.46357754,613.2,612.04,5.36677602]
[1742091440399,0.32607809,613.35,612.04,5.36677602]
[1742091455014,2.46357754,613.26,612.04,5.36677602]
[1742091456611,2.46357754,613.3,612.04,5.36677602]
[1742091458612,2.46357754,613.28,612.04,5.36677602]
[1742091461314,2.46357754,613.3,612.04,5.36677602]
[1742091462615,2.46357754,613.27,612.04,5.36677602]
[1742091464517,2.46357754,613.32,612.04,5.36677602]
[1742091465515,2.78967158,613.32,612.04,5.36677602]
[1742091466013,0.32609936,613.31,612.04,5.36677602]
[1742091469719,0.28413382,613.3,612.04,5.36677602]
[1742091470422,0.32610999,613.29,612.04,5.36677602]
[1742091475719,0.28414774,613.28,612.04,5.36677602]
[1742091475924,0.32612063,613.27,612.04,5.36677602]
[1742091478926,0.61026837,613.27,612.04,5.36677602]
[1742091484431,0.32612063,613.27,612.04,5.36677602]
[1742091484929,0.61026953,613.27,612.04,5.36677602]
[1742091487333,2.46357754,613.25,612.04,5.36677602]
[1742091487533,0.32613658,613.24,612.04,5.36677602]
[1742091489335,2.46357754,613.15,612.04,5.36677602]
[1742091491230,2.46357754,613.16,612.04,5.36677602]
[1742091493529,2.78971412,613.24,612.04,5.36677602]
[1742091496132,0.32613658,613.24,612.04,5.36677602]
[1742091497435,0.32613658,613.24,612.05,1.05386051]
[1742091497633,0.32613658,613.24,612.06,0.32676534]
[1742091497836,0.32613658,613.24,612.07,1.05386051]
[1742091498033,0.32613658,613.24,612.08,1.05386051]
[1742091498240,0.32613658,613.24,612.09,1.38060984]
[1742091498541,0.32613658,613.24,612.1,0.32674399]
[1742091498939,0.32613658,613.24,612.11,1.05351656]
[1742091499239,0.32613658,613.24,612.12,1.05351656]
[1742091499433,0.32613658,613.24,612.13,1.05351656]
[1742091499635,0.32613658,613.24,612.14,1.05351656]
[1742091499835,0.32613658,613.24,612.15,1.05299662]
[1742091500036,0.32613658,613.24,612.15,1.327]
[1742091500236,0.32613658,613.24,612.15,2.511]
[1742091501435,0.32613658,613.24,612.15,3.814]
[1742091501633,0.32613658,613.24,612.15,5.463]
[1742091501833,0.32613658,613.24,612.16,0.32671197]
[1742091518459,2.46357754,613.57,612.16,0.32671197]
[1742091519156,2.46357754,613.54,612.16,0.32671197]
[1742091521357,2.46357754,613.54,612.16,1.68271197]
[1742091524263,2.46357754,614.0,612.16,1.68271197]
[1742091524564,0.3257435,613.98,612.16,1.68271197]
[1742091528063,0.3257435,613.98,612.16,3.08871197]
[1742091529265,2.46357754,613.64,612.16,3.08871197]
[1742091529466,0.3259293,613.63,612.16,3.08871197]
[1742091531266,2.46357754,613.59,612.16,3.08871197]
[1742091531468,0.32595586,613.58,612.16,3.08871197]
[1742091532166,0.32595586,613.58,612.16,4.64771197]
[1742091532968,0.2840399,613.57,612.16,4.64771197]
[1742091533268,0.32596649,613.56,612.16,4.64771197]
[1742091536765,0.28403758,613.55,612.16,4.64771197]
[1742091536969,0.32597711,613.54,612.16,4.64771197]
[1742091537373,2.46357754,613.19,612.16,4.64771197]
[1742091538367,2.46357754,613.19,612.16,6.08071197]
[1742091539467,2.46357754,613.18,612.16,6.08071197]
[1742091541971,0.32597711,613.54,612.16,6.08071197]
[1742091541972,2.46357754,613.2,612.16,6.08071197]
[1742091543671,2.46357754,613.51,612.16,6.08071197]
[1742091544577,0.32599837,613.5,612.16,6.08071197]
[1742091545468,0.28406308,613.49,612.16,6.08071197]
[1742091545670,0.32600899,613.48,612.16,6.08071197]
[1742091551675,0.28403874,613.47,612.16,6.08071197]
[1742091551874,0.32601962,613.46,612.16,6.08071197]
[1742091553880,0.28407699,613.45,612.16,6.08071197]
[1742091554077,0.32603025,613.44,612.16,6.08071197]
[1742091558585,2.46357754,613.33,612.16,6.08071197]
[1742091558779,0.32609404,613.32,612.16,6.08071197]
[1742091560780,0.28413034,613.31,612.16,6.08071197]
[1742091561288,0.32610467,613.3,612.16,6.08071197]
[1742091561587,2.46357754,613.2,612.16,6.08071197]
[1742091561787,2.7897354,613.2,612.16,6.08071197]
[1742091564685,0.32615786,613.2,612.16,6.08071197]
[1742091601122,2.46357754,613.86,612.16,6.08071197]
[1742091601416,0.3258178,613.84,612.16,6.08071197]
[1742091601617,2.46357754,613.83,612.16,6.08071197]
[1742091601813,0.32583372,613.81,612.16,6.08071197]
[1742091605319,2.46357754,613.78,612.16,6.08071197]
[1742091605522,0.32586027,613.76,612.16,6.08071197]
[1742091608821,0.28399006,613.75,612.16,6.08071197]
[1742091609024,0.32587088,613.74,612.16,6.08071197]
[1742091614830,0.2839553,613.73,612.16,6.08071197]
[1742091616228,0.32588681,613.71,612.16,6.08071197]
[1742091616823,0.28401208,613.7,612.16,6.08071197]
[1742091617526,0.32589744,613.69,612.16,6.08071197]
[1742091618530,2.46357754,613.65,612.16,6.08071197]
[1742091618931,0.32592399,613.64,612.16,6.08071197]
[1742091621034,0.28402135,613.63,612.16,6.08071197]
[1742091621236,0.32593461,613.62,612.16,6.08071197]
[1742091622936,0.28402367,613.61,612.16,6.08071197]
[1742091623236,0.32594524,613.6,612.16,6.08071197]
[1742091626031,0.28402599,613.59,612.16,6.08071197]
[1742091626836,0.32594524,613.6,612.16,6.08071197]
[1742091627031,0.32594524,613.6,612.17,1.17336358]
[1742091627235,0.32594524,613.6,612.18,0.32670129]
[1742091630032,0.32594524,613.6,612.18,1.35370129]
[1742091630234,0.32594524,613.6,612.19,1.05211491]
[1742091630539,0.32594524,613.6,612.2,0.32669062]
[1742091630732,0.32594524,613.6,612.2,1.84669062]
[1742091630932,0.32594524,613.6,612.21,0.32668528]
[1742091631337,0.32594524,613.6,612.22,0.963]
[1742091631940,0.32594524,613.6,612.22,1.28967995]
[1742091632833,0.28399585,613.59,612.22,1.28967995]
[1742091633240,0.32596117,613.57,612.22,1.28967995]
[1742091634139,2.46357754,613.42,612.22,1.28967995]
[1742091634337,0.3260462,613.41,612.22,1.28967995]
[1742091635240,0.28408511,613.4,612.22,1.28967995]
[1742091635742,0.32605683,613.39,612.22,1.28967995]
[1742091636237,2.46357754,613.14,612.22,1.28967995]
[1742091638843,0.32605683,613.39,612.22,1.28967995]
[1742091643451,0.32605683,613.39,612.22,0.963]
[1742091646452,0.32605683,613.39,612.23,1.42]
[1742091646847,0.2841083,613.38,612.23,1.42]
[1742091647351,0.32606746,613.37,612.23,1.42]
[1742091649949,0.28410946,613.36,612.23,1.42]
[1742091650552,0.32607809,613.35,612.23,1.42]
[1742091651252,0.32607809,613.35,612.24,1.509]
[1742091655458,2.46357754,613.24,612.24,1.509]
[1742091655757,0.3261419,613.23,612.24,1.509]
[1742091660062,2.46357754,613.12,612.24,1.509]
[1742091661764,0.32620573,613.11,612.24,1.509]
[1742091671678,2.46357754,613.03,612.24,1.509]
[1742091671871,0.32625362,613.02,612.24,1.509]
[1742091672975,0.32625362,613.02,612.25,1.501]
[1742091673573,2.46357754,612.99,612.25,1.501]
[1742091675575,0.32625362,613.02,612.25,1.501]
[1742091677280,0.32625362,613.02,612.26,1.136]
[1742091677978,0.32625362,613.02,612.27,1.448]
[1742091679582,0.32625362,613.02,612.27,2.754]
[1742091700793,2.46357754,613.36,612.27,2.754]
[1742091702597,2.46357754,613.4,612.27,2.754]
[1742091702893,0.32605683,613.39,612.27,2.754]
[1742091704894,2.46357754,613.27,612.27,4.091]
[1742091706597,2.46357754,613.27,612.27,5.063]
[1742091707793,0.32605683,613.39,612.27,5.063]
[1742091717008,0.28407815,613.38,612.27,5.063]
[1742091717209,0.32606746,613.37,612.27,5.063]
[1742091718910,2.46357754,613.07,612.27,5.063]
[1742091720804,2.46357754,613.0,612.27,5.063]
[1742091723309,2.46357754,613.01,612.27,5.063]
[1742091725014,2.46357754,613.1,612.27,5.063]
[1742091726813,2.74772528,613.26,612.27,5.063]
[1742091727010,0.32613126,613.25,612.27,5.063]
[1742091739030,2.7897088,613.25,612.27,5.063]
[1742091740032,0.28413614,613.24,612.27,1.79511719]
[1742091740227,0.28413614,613.24,612.27,0.972]
[1742091740728,0.3261419,613.23,612.27,0.972]
[1742091740928,2.46357754,613.06,612.27,0.972]
[1742091742527,2.46357754,613.01,612.27,0.972]
[1742091745233,2.46357754,612.94,612.27,0.972]
[1742091746928,0.3261419,613.23,612.27,0.972]
[1742091746929,2.46357754,612.85,612.27,0.972]
[1742091749632,2.46357754,612.94,612.27,0.972]
[1742091751639,2.46357754,613.06,612.27,0.972]
[1742091753838,0.28416282,613.2,612.27,0.972]
[1742091754039,0.32616317,613.19,612.27,0.972]
[1742091761842,0.28415006,613.18,612.27,0.972]
[1742091762042,0.32617913,613.16,612.27,0.972]
[1742091764243,0.28412918,613.15,612.27,0.972]
[1742091764551,0.32618977,613.14,612.27,0.972]
[1742091767045,0.28416862,613.13,612.27,0.972]
[1742091767351,0.32620041,613.12,612.27,0.972]
[1742091770052,0.28420808,613.11,612.27,0.972]
[1742091770353,0.32621637,613.09,612.27,0.972]
[1742091776057,0.28421736,613.08,612.27,0.972]
[1742091776256,0.32623234,613.06,612.27,0.972]
[1742091777959,0.32623234,613.06,612.27,0.20269239]
[1742091778162,0.32623234,613.06,611.83,1.439]
[1742091779063,0.28427192,613.05,611.83,1.439]
[1742091779254,0.32624298,613.04,611.83,1.439]
[1742091782957,0.28427424,613.03,611.83,1.439]
[1742091783866,0.32625362,613.02,611.83,1.439]
[1742091785066,0.28427773,613.01,611.83,1.439]
[1742091785263,0.32626427,613.0,611.83,1.439]
[1742091786468,0.32626427,613.0,611.84,1.363]
[1742091788072,0.28427889,612.99,611.85,1.5]
[1742091788268,0.32627491,612.98,611.85,1.5]
[1742091790973,0.28429631,612.97,611.85,1.5]
[1742091791168,0.32628556,612.96,611.85,1.5]
[1742091794078,0.28429863,612.95,611.85,1.5]
[1742091794276,0.32629621,612.94,611.85,1.5]
[1742091801685,0.32629621,612.94,611.86,1.389]
[1742091805586,0.32629621,612.94,611.87,1.432]
[1742091816502,0.32629621,612.94,611.85,1.5]
[1742091817403,0.32629621,612.94,611.86,1.05]
[1742091818801,0.32629621,612.94,611.87,1.029]
[1742091823301,0.32629621,612.94,611.88,1.524]
[1742091831310,2.46357754,612.76,611.88,1.524]
[1742091833710,2.46357754,612.77,611.88,1.524]
[1742091835410,2.46357754,612.76,611.88,1.524]
[1742091837705,2.46357754,612.74,611.88,1.524]
[1742091839615,2.46357754,612.87,611.88,1.524]
[1742091842515,0.32629621,612.94,611.88,1.524]
[1742091848623,0.32629621,612.94,611.89,1.334]
[1742091851418,0.32629621,612.94,611.9,1.083]
[1742091860832,0.32629621,612.94,611.9,1.40985079]
[1742091865142,0.32629621,612.94,611.9,2.61785079]
[1742091870351,0.32629621,612.94,611.91,0.32684545]
[1742091871344,0.32629621,612.94,611.91,1.44184545]
[1742091873149,0.32629621,612.94,611.91,2.89484545]
[1742091878652,0.32629621,612.94,611.91,4.11884545]
[1742091902270,2.46357754,613.39,611.91,4.11884545]
[1742091902466,0.32606214,613.38,611.91,4.11884545]
[1742091902972,0.28413614,613.37,611.91,4.11884545]
[1742091903171,0.32607277,613.36,611.91,4.11884545]
[1742091903569,0.32607277,613.36,611.92,1.04136369]
[1742091903770,0.32607277,613.36,611.93,1.04134646]
[1742091903970,0.32607277,613.36,611.94,1.04134646]
[1742091904168,0.32607277,613.36,611.95,0.32682408]
[1742091904767,0.32607277,613.36,611.96,1.04116767]
[1742091904971,0.28413034,613.35,611.97,1.04116767]
[1742091905265,0.32608341,613.34,611.97,1.17134793]
[1742091905666,2.78966095,613.34,611.97,1.17134793]
[1742091905866,2.78966095,613.34,611.95,0.32682408]
[1742091906071,2.78966095,613.34,611.96,1.04098979]
[1742091906271,2.78966095,613.34,611.95,0.32682408]
[1742091906466,2.78966095,613.34,611.96,1.04084375]
[1742091906671,2.78966095,613.34,611.95,0.32682408]
[1742091906872,2.78966095,613.34,611.97,0.976]
[1742091907574,0.32608341,613.34,611.98,1.084]
[1742091907770,0.32608341,613.34,611.99,0.32680272]
[1742091910271,2.46357754,613.29,611.99,0.32680272]
[1742091910466,0.32611531,613.28,611.99,0.32680272]
[1742091912173,0.28415122,613.27,611.99,0.32680272]
[1742091912473,0.32612594,613.26,611.99,0.32680272]
[1742091920980,0.32612594,613.26,612.0,1.418]
[1742091921579,2.46357754,613.16,612.0,1.418]
[1742091923680,2.78975667,613.16,612.0,1.418]
[1742091923876,0.32617913,613.16,612.0,1.418]
[1742091928889,0.32617913,613.16,612.01,1.126]
[1742091934300,0.28412338,613.26,612.01,1.126]
[1742091934694,2.46357754,613.44,612.01,1.126]
[1742091934901,2.46357754,613.05,612.01,1.126]
[1742091935096,2.46357754,613.05,612.02,1.201]
[1742091937103,0.28418835,613.19,612.02,1.201]
[1742091937702,2.46357754,613.32,612.02,1.201]
[1742091939108,0.28415702,613.31,612.02,1.201]
[1742091939503,0.28415702,613.31,612.02,2.234]
[1742091940710,2.46357754,613.42,612.02,2.234]
[1742091941711,2.46357754,613.44,612.02,2.234]
[1742091941911,0.28414542,613.41,612.02,2.234]
[1742091943906,2.46357754,613.42,612.02,2.234]
[1742091944914,0.28414542,613.41,612.02,2.234]
[1742091946414,2.46357754,613.23,612.02,2.234]
[1742091948714,2.46357754,613.28,612.02,2.234]
[1742091951012,0.28416166,613.27,612.02,2.234]
[1742091951214,2.46357754,613.21,612.02,2.234]
[1742091954116,0.28416978,613.2,612.02,2.234]
[1742091955721,2.46357754,613.21,612.02,2.234]
[1742091955915,0.28416978,613.19,612.02,2.234]
[1742091957316,0.32616849,613.18,612.02,2.234]
[1742091968230,0.32616849,613.18,612.02,3.658]
[1742091972535,2.46357754,613.14,612.02,3.658]
[1742091972938,2.46357754,613.14,612.02,4.771]
[1742091974635,0.32616849,613.18,612.02,4.771]
[1742091975538,0.32616849,613.18,612.03,1.36841985]
[1742091975737,0.32616849,613.18,612.03,0.32678136]
[1742091975938,0.32616849,613.18,612.04,0.32677602]
[1742091977033,0.32616849,613.18,612.05,1.04130638]
[1742091977237,0.32616849,613.18,612.06,1.04130638]
[1742091977433,0.32616849,613.18,612.07,1.36806639]
[1742091977638,0.32616849,613.18,612.08,1.36806105]
[1742091977833,0.32616849,613.18,612.08,0.32675467]
[1742091978339,0.32616849,613.18,612.09,2.71996296]
[1742091979136,0.32616849,613.18,612.09,1.549]
[1742091979940,0.32616849,613.18,612.1,1.197]
[1742091990956,0.32616849,613.18,612.09,1.549]
[1742091993354,0.32616849,613.18,612.1,1.35]
[1742091993960,0.32616849,613.18,612.11,1.097]
[1742091994461,2.46357754,613.29,612.12,1.36649532]
[1742091994759,2.46357754,613.29,612.13,1.36648998]
[1742091995061,2.46357754,613.36,612.14,1.039762]
[1742091995361,2.46357754,613.36,612.15,1.039762]
[1742091995560,2.46357754,613.36,612.16,1.039762]
[1742091995761,2.46357754,613.36,612.17,1.039762]
[1742091995961,2.46357754,613.36,612.18,0.32670129]
[1742091996357,2.46357754,613.36,612.19,1.03863614]
[1742091996564,2.46357754,613.36,612.2,0.32669062]
[1742091996960,0.2840399,613.66,612.2,0.32669062]
[1742091997162,0.32591868,613.65,612.2,0.32669062]
[1742091999162,0.28397963,613.64,612.2,0.32669062]
[1742091999563,0.3259293,613.63,612.2,0.32669062]
[1742092003360,0.3259293,613.63,612.21,1.316]
[1742092003561,0.3259293,613.63,612.22,0.32667995]
[1742092010171,0.28399701,613.62,612.22,0.32667995]
[1742092010372,0.32593992,613.61,612.22,0.32667995]
[1742092013171,0.28402135,613.6,612.22,0.32667995]
[1742092013372,0.32595055,613.59,612.22,0.32667995]
[1742092022277,0.32595055,613.59,612.23,1.396]
[1742092022978,0.32595055,613.59,612.24,1.03]
[1742092024479,0.32595055,613.59,612.25,0.32666394]
[1742092036987,0.32595055,613.59,612.26,1.433]
[1742092037182,2.46357754,613.45,612.27,0.32665327]
[1742092037780,2.46357754,613.45,612.28,1.03754122]
[1742092037988,2.46357754,613.45,612.29,1.36414501]
[1742092038287,2.46357754,613.45,612.3,1.03750241]
[1742092038487,2.46357754,613.45,612.31,1.03750241]
[1742092038688,2.46357754,613.45,612.32,1.03750241]
[1742092038885,0.32595055,613.59,612.33,2.53093174]
[1742092039089,0.32595055,613.59,612.34,1.03738875]
[1742092039285,0.32595055,613.59,612.35,0.32661059]
[1742092042088,0.32595055,613.59,612.36,1.03741673]
[1742092042288,0.32595055,613.59,612.26,1.433]
[1742092042289,0.32595055,613.59,612.37,1.36401666]
[1742092042490,0.32595055,613.59,612.37,0.32659993]
[1742092042791,0.32595055,613.59,612.38,1.49332382]
[1742092043089,0.32595055,613.59,612.39,0.32658926]
[1742092043484,0.32595055,613.59,612.4,1.03732421]
[1742092043685,0.32595055,613.59,612.41,1.3639028]
[1742092043991,0.32595055,613.59,612.42,1.36389747]
[1742092044189,0.32595055,613.59,612.43,1.36389214]
[1742092044391,0.32595055,613.59,612.44,1.36388681]
[1742092044587,0.32595055,613.59,612.45,0.32655726]
[1742092051993,0.32595055,613.59,612.46,1.03717687]
[1742092052198,0.32595055,613.59,612.47,0.3265466]
[1742092052793,0.32595055,613.59,612.48,1.073]
[1742092052995,0.32595055,613.59,612.49,0.32653594]
[1742092059208,0.32595055,613.59,612.5,1.228]
[1742092063405,0.32595055,613.59,612.51,1.315]
[1742092067419,0.32595055,613.59,612.52,1.367]
[1742092075320,0.32595055,613.59,612.52,2.806]
[1742092075721,2.46357754,613.46,612.52,2.806]
[1742092077614,2.46357754,613.48,612.52,2.806]
[1742092077814,2.46357754,613.48,612.52,3.985]
[1742092079723,2.46357754,613.56,612.52,3.985]
[1742092079922,2.78954403,613.56,612.52,3.985]
[1742092082027,0.32596649,613.56,612.52,3.985]
[1742092112442,0.32596649,613.56,612.52,5.163]
[1742092124348,2.46357754,613.42,612.53,0.32651461]
[1742092126748,0.28391129,613.95,612.54,1.03998686]
[1742092126953,0.32576473,613.94,612.55,0.32650395]
[1742092127851,0.32576473,613.94,612.55,1.65950395]
[1742092128552,0.32576473,613.94,612.55,2.64350395]
[1742092128852,0.32576473,613.94,612.55,3.93550395]
[1742092143161,2.46357754,613.82,612.55,3.93550395]
[1742092148565,0.32576473,613.94,612.55,3.93550395]
[1742092152566,0.32576473,613.94,612.55,5.31850395]
[1742092157067,0.28387539,613.93,612.55,5.31850395]
[1742092157270,0.32578065,613.91,612.55,5.31850395]
[1742092178893,0.32578065,613.91,612.56,1.03962542]
[1742092179089,0.32578065,613.91,612.57,0.32649329]
[1742092179494,0.32578065,613.91,612.58,1.03972209]
[1742092179793,0.32578065,613.91,612.59,0.32648263]
[1742092181694,0.32578065,613.91,612.6,1.203]
[1742092181894,0.32578065,613.91,612.61,0.32647198]
[1742092182295,0.32578065,613.91,612.62,1.399]
[1742092182496,0.32578065,613.91,612.63,0.32646132]
[1742092182696,0.32578065,613.91,612.63,1.39646132]
[1742092188196,0.32578065,613.91,612.64,1.16953903]
[1742092188593,0.32578065,613.91,612.63,1.39646132]
[1742092190000,0.32578065,613.91,612.64,1.17005094]
[1742092190692,0.32578065,613.91,612.63,1.39646132]
[1742092199204,2.46357754,613.88,612.63,1.39646132]
[1742092200100,2.46357754,613.88,612.64,1.075]
[1742092200301,2.46357754,613.88,612.65,0.32645066]
[1742092201308,0.32578065,613.91,612.65,0.32645066]
[1742092201705,0.32578065,613.91,612.65,1.29645066]
[1742092202106,0.32578065,613.91,612.66,1.03947759]
[1742092202302,0.32578065,613.91,612.67,1.36591759]
[1742092202502,0.32578065,613.91,612.68,1.36591227]
[1742092202704,0.32578065,613.91,612.69,1.36590694]
[1742092202903,0.32578065,613.91,612.7,1.36590161]
[1742092203103,0.32578065,613.91,612.71,0.32641869]
[1742092210014,0.32578065,613.91,612.72,1.582]
[1742092211620,0.32578065,613.91,612.73,1.408]
[1742092216923,0.32578065,613.91,612.74,0.898]
[1742092221231,0.32578065,613.91,612.75,1.467]
[1742092229638,2.46357754,613.87,612.75,1.467]
[1742092231941,2.46357754,613.62,612.75,1.467]
[1742092233345,2.46357754,613.62,612.76,0.942]
[1742092233937,2.46357754,613.84,612.76,0.942]
[1742092235737,0.32578065,613.91,612.76,0.942]
[1742092237441,0.32578065,613.91,612.77,0.32638673]
[1742092239544,0.32578065,613.91,612.77,1.77938673]
[1742092246447,2.78935819,613.91,612.77,1.77938673]
[1742092248041,0.32578065,613.91,612.77,1.77938673]
[1742092250246,2.46357754,613.83,612.77,1.77938673]
[1742092251348,2.46357754,613.83,612.78,1.36608057]
[1742092251544,2.46357754,613.83,612.79,1.36583588]
[1742092251744,2.46357754,613.83,612.8,0.32637075]
[1742092252447,0.32578065,613.91,612.8,0.32637075]
[1742092256254,0.32578065,613.91,612.8,1.33737075]
[1742092257257,0.32578065,613.91,612.8,2.76737075]
[1742092258855,0.32578065,613.91,612.81,1.03953175]
[1742092259155,0.32578065,613.91,612.8,2.76737075]
[1742092259156,0.32578065,613.91,612.82,0.3263601]
[1742092260554,0.32578065,613.91,612.83,1.99121291]
[1742092260754,0.32578065,613.91,612.84,0.32634945]
[1742092261257,0.32578065,613.91,612.85,1.03921285]
[1742092261456,0.32578065,613.91,612.86,0.3263388]
[1742092261757,0.32578065,613.91,612.86,1.8743388]
[1742092262558,2.46357754,614.21,612.86,1.8743388]
[1742092262959,2.46357754,614.25,612.86,1.8743388]
[1742092264755,2.46432273,614.8,612.87,2.69910617]
[1742092264756,2.46357754,614.32,612.87,2.69910617]
[1742092265058,2.46357754,614.32,612.89,0.32632283]
[1742092265259,2.46357754,614.32,612.9,2.69910617]
[1742092265454,2.46357754,614.32,612.92,0.32630685]
[1742092265659,2.46357754,614.32,612.93,6.3102332]
[1742092265857,2.46357754,614.32,612.95,0.32629088]
[1742092266054,2.46357754,614.32,612.96,2.69910617]
[1742092266256,2.46357754,614.32,612.98,0.32627491]
[1742092266454,2.46357754,614.32,612.99,3.5754429]
[1742092266659,2.46357754,614.32,613.01,0.32625895]
[1742092266854,2.46357754,614.32,613.02,3.5754429]
[1742092267061,2.46357754,614.32,613.04,0.32624298]
[1742092267253,2.46357754,614.32,613.05,2.99862528]
[1742092267457,2.46357754,614.32,613.07,0.32622702]
[1742092267659,2.46357754,614.32,613.08,2.99862528]
[1742092267957,2.46357754,614.32,613.1,0.32621105]
[1742092268163,0.2835481,614.76,613.11,2.99862528]
[1742092268455,0.3253355,614.75,613.13,0.32619509]
[1742092268664,0.3253355,614.75,613.14,1.03823902]
[1742092268859,0.3253355,614.75,613.15,1.03823902]
[1742092269060,0.3253355,614.75,613.17,0.32617381]
[1742092269453,0.3253355,614.75,613.18,1.33036761]
[1742092269657,0.3253355,614.75,613.2,0.32615786]
[1742092269860,0.3253355,614.75,613.21,1.33036761]
[1742092270061,0.3253355,614.75,613.23,0.3261419]
[1742092270360,0.3253355,614.75,613.24,1.3306506]
[1742092270561,0.3253355,614.75,613.26,0.32612594]
[1742092272156,0.28351576,614.74,613.26,0.32612594]
[1742092272359,0.32534608,614.73,613.27,1.109]
[1742092272557,0.32534608,614.73,613.28,0.32611531]
[1742092273061,0.32534608,614.73,613.29,1.02884438]
[1742092273258,0.32534608,614.73,613.31,0.32609936]
[1742092278161,0.28340378,614.72,613.31,0.32609936]
[1742092278465,0.32535667,614.71,613.31,0.32609936]
[1742092282962,0.32535667,614.71,613.32,1.0241872]
[1742092283161,0.32535667,614.71,613.34,0.32608341]
[1742092283767,0.32535667,614.71,613.35,1.15173297]
[1742092283963,0.32535667,614.71,613.37,0.32606746]
[1742092284770,0.32535667,614.71,613.38,1.15173297]
[1742092284970,0.32535667,614.71,613.39,0.32605683]
[1742092288467,0.32535667,614.71,613.4,1.346]
[1742092288674,0.32535667,614.71,613.41,0.3260462]
[1742092292878,0.32535667,614.71,613.41,1.5050462]
[1742092293480,0.32535667,614.71,613.41,3.0000462]
[1742092310098,0.28347765,614.7,613.41,3.0000462]
[1742092310301,0.32536725,614.69,613.41,3.0000462]
[1742092312900,0.32536725,614.69,613.41,3.9730462]
[1742092318503,0.32536725,614.69,613.41,4.8970462]
[1742092344824,0.32536725,614.69,613.42,1.03639152]
[1742092345019,0.32536725,614.69,613.43,1.36242709]
[1742092345220,0.32536725,614.69,613.44,1.36242177]
[1742092345520,0.32536725,614.69,613.45,0.32602494]
[1742092346423,0.32536725,614.69,613.46,1.03624801]
[1742092346616,0.32536725,614.69,613.47,1.36226232]
[1742092346822,0.32536725,614.69,613.48,1.362257]
[1742092347027,0.32536725,614.69,613.49,1.36225169]
[1742092347229,0.32536725,614.69,613.47,1.1650082]
[1742092347230,0.32536725,614.69,613.5,1.36224638]
[1742092347430,0.32536725,614.69,613.51,0.32599305]
[1742092347828,0.32536725,614.69,613.52,1.242]
[1742092348029,0.32536725,614.69,613.53,0.32598242]
[1742092348730,0.32536725,614.69,613.53,1.36298242]
[1742092351033,0.32536725,614.69,613.54,1.03584354]
[1742092351226,0.32536725,614.69,613.55,1.03584354]
[1742092351430,0.32536725,614.69,613.53,1.36298242]
[1742092351431,0.32536725,614.69,613.54,1.16474907]
[1742092351634,2.46357754,614.93,613.56,0.32596649]
[1742092351832,0.32524556,614.92,613.56,0.32596649]
[1742092353234,0.28340262,614.91,613.56,0.32596649]
[1742092353428,0.32525613,614.9,613.56,0.32596649]
[1742092354036,2.46357754,614.81,613.56,0.32596649]
[1742092355738,2.46357754,614.68,613.56,0.32596649]
[1742092357943,0.28341647,614.86,613.56,0.32596649]
[1742092357944,2.46357754,614.67,613.56,0.32596649]
[1742092359841,2.46357754,614.63,613.56,0.32596649]
[1742092363348,0.32528258,614.85,613.56,0.32596649]
[1742092372755,0.32528258,614.85,613.56,1.54596649]
[1742092373362,0.32528258,614.85,613.56,2.61796649]
[1742092375261,0.32528258,614.85,613.56,3.70496649]
[1742092382161,2.46357754,614.84,613.56,3.70496649]
[1742092382361,0.32529317,614.83,613.56,3.70496649]
[1742092382559,0.32529317,614.83,613.56,4.89996649]
[1742092384063,2.46357754,614.82,613.56,4.89996649]
[1742092384361,0.32530375,614.81,613.56,4.89996649]
[1742092386463,0.32530375,614.81,613.57,1.03693562]
[1742092386667,0.32530375,614.81,613.58,1.36289148]
[1742092386965,0.32530375,614.81,613.58,0.32595586]
[1742092388664,0.32530375,614.81,613.59,1.03648594]
[1742092388865,0.32530375,614.81,613.6,1.03648594]
[1742092389060,0.32530375,614.81,613.61,1.03648594]
[1742092389265,0.32530375,614.81,613.62,1.03648594]
[1742092389463,0.32530375,614.81,613.63,1.03648594]